Workbook

Sheet 2-4
A1: Количество рук | B1: выигрыш | C1: ББ/100
A2: 2449 | B2: 2725 | C2: =B2/(A2/100)/4 -> 27.81747652

Sheet 5-10
A1: Количество рук | B1: выигрыш | C1: ББ/100
A2: 1291 | B2: 2108 | C2: =B2/(A2/100)/10 -> 16.32842758

Sheet 10-20
A1: Количество рук | B1: выигрыш | C1: ББ/100
A2: 92 | B2: -844 | C2: =B2/(A2/100)/20 -> -45.86956522

Sheet HU GT
A1: 306 | F1: РЕЗУЛЬТАТ ДНЯ
A2: количество турниров | B2: выиграных | C2: проиграных | D2: выигрыш | F2: количество турниров | G2: выиграных | H2: проиграных | I2: выигрыш
A3: =B3+C3 -> 1 | B3: 1 | C3: 0 | D3: =(B3*294)-(C3*306) -> 294 | F3: =G3+H3 -> 12 | G3: 5 | H3: 7 | I3: =(G3*196)-(H3*204) -> -448
A4: рейк (руб) | B4: =(B3+C3)*6 -> 6 | F4: рейк (руб) | G4: =(G3+H3)*6 -> 72
A5: средний выигрыш за 1 турнир (руб) | B5: =D3/A3 -> 294 | F5: средний выигрыш за 1 турнир (руб) | G5: =I3/F3 -> -37.33333333
A6: ROI | B6: =((600*B3-306*A3)/(306*A3))*100 -> 96.07843137 | F6: ROI | G6: =((200*G3-102*F3)/(102*F3))*100 -> -18.30065359
A7: процентное соотношение | B7: =B3*100/A3 -> 100 | C7: =C3*100/A3 -> 0 | F7: процентное соотношение | G7: =G3*100/F3 -> 41.66666667 | H7: =H3*100/F3 -> 58.33333333
A9: 255
A10: количество турниров | B10: выиграных | C10: проиграных | D10: выигрыш
A11: =B11+C11 -> 1 | B11: 0 | C11: 1 | D11: =(B11*245)-(C11*255) -> -255
A12: рейк (руб) | B12: =(B11+C11)*6 -> 6
A13: средний выигрыш за 1 турнир (руб) | B13: =D11/A11 -> -255
A14: ROI | B14: =((500*B11-255*A11)/(255*A11))*100 -> -100
A15: процентное соотношение | B15: =B11*100/A11 -> 0 | C15: =C11*100/A11 -> 100
A17: 204
A18: количество турниров | B18: выиграных | C18: проиграных | D18: выигрыш
A19: =B19+C19 -> 52 | B19: 34 | C19: 18 | D19: =(B19*245)-(C19*255) -> 3740
A20: рейк (руб) | B20: =(B19+C19)*6 -> 312
A21: средний выигрыш за 1 турнир (руб) | B21: =D19/A19 -> 71.92307692
A22: ROI | B22: =((400*B19-204*A19)/(204*A19))*100 -> 28.20512821
A23: процентное соотношение | B23: =B19*100/A19 -> 65.38461538 | C23: =C19*100/A19 -> 34.61538462
A25: 102
A26: количество турниров | B26: выиграных | C26: проиграных | D26: выигрыш
A27: =B27+C27 -> 43 | B27: 21 | C27: 22 | D27: =(B27*98)-(C27*102) -> -186
A28: рейк (руб) | B28: =(B27+C27)*2 -> 86
A29: средний выигрыш за 1 турнир (руб) | B29: =D27/A27 -> -4.325581395
A30: ROI | B30: =((200*B27-102*A27)/(102*A27))*100 -> -4.240766074
A31: процентное соотношение | B31: =B27*100/A27 -> 48.8372093 | C31: =C27*100/A27 -> 51.1627907
